bitfinex/quotes_ETHUSD_20230113
["timestamp","ask_amount","ask_price","bid_price","bid_amount"]
[1673633356201,12.25311898,1420.5,1420.4,1.189]
[1673633356440,29.9392717,1420.5,1420.4,1.189]
[1673633356661,31.51059901,1420.5,1420.4,1.189]
[1673633356841,53.04706,1420.5,1420.2,0.002]
[1673633357051,12.55481216,1420.3,1420.2,0.01]
[1673633357278,22.47433216,1420.3,1420.2,0.01]
[1673633357492,24.65894879,1420.3,1420.2,0.01]
[1673633357877,2.5,1420.2,1420.0,0.01503287]
[1673633358092,4.6550095,1420.1,1420.0,0.01503287]
[1673633358357,27.21568171,1420.1,1420.0,0.01503287]
[1673633358520,27.51168171,1420.1,1420.0,0.01503287]
[1673633358724,36.43168171,1420.1,1420.0,0.01503287]
[1673633359058,38.00469688,1420.1,1420.0,0.01503287]
[1673633359281,38.00463242,1420.1,1420.0,0.01503287]
[1673633359496,38.00463667,1420.1,1420.0,0.01503287]
[1673633359689,36.9560201,1420.1,1420.0,0.01503287]
[1673633361039,36.4315208,1420.1,1420.0,0.01503287]
[1673633361468,35.38300493,1420.1,1420.0,0.01503287]
[1673633361717,21.06950493,1420.1,1420.0,0.01503287]
[1673633361929,35.15300493,1420.1,1420.0,0.01503287]
[1673633362717,36.2015208,1420.1,1420.0,0.01503287]
[1673633366293,42.00253597,1420.1,1420.0,0.01503287]
[1673633366506,42.23253597,1420.1,1420.0,0.01503287]
[1673633366731,41.1840201,1420.1,1420.0,0.01503287]
[1673633367770,42.23196503,1420.1,1420.0,0.01503287]
[1673633368301,38.00396503,1420.1,1420.0,0.01503287]
[1673633368747,36.43094986,1420.1,1420.0,0.01503287]
[1673633370917,36.20094986,1420.1,1420.0,0.01503287]
[1673633371803,29.15919986,1420.1,1420.0,0.01503287]
[1673633372122,26.67583272,1420.1,1420.0,1.42903287]
[1673633372333,8.986,1420.1,1420.0,2.61203287]
[1673633372494,8.986,1420.1,1420.0,3.79003287]
[1673633372495,5.986,1420.1,1420.0,3.79003287]
[1673633373695,13.02775,1420.1,1420.0,3.79003287]
[1673633373892,5.986,1420.1,1420.0,3.79003287]
[1673633374295,5.986,1420.1,1420.0,10.83228287]
[1673633374492,5.986,1420.1,1420.0,10.89828287]
[1673633374945,5.986,1420.1,1420.0,3.85603287]
[1673633375160,5.986,1420.1,1420.0,3.79003287]
[1673633375761,13.02775,1420.1,1420.0,3.79003287]
[1673633377653,5.986,1420.1,1420.0,3.79003287]
[1673633377911,5.986,1420.1,1420.0,17.87453287]
[1673633378130,5.986,1420.1,1420.0,24.98278287]
[1673633379029,5.986,1420.1,1420.0,3.85603287]
[1673633379237,5.986,1420.1,1420.0,3.79003287]
[1673633380751,4.1883976,1420.1,1420.0,12.02128287]
[1673633380970,4.1223976,1420.1,1420.0,19.12953287]
[1673633382412,3.07409062,1420.1,1420.0,19.12953287]
[1673633383430,3.07409062,1420.1,1420.0,26.17178287]
[1673633384632,3.07409062,1420.1,1420.0,19.12953287]
[1673633387463,3.07409062,1420.1,1420.0,33.26582054]
[1673633387652,3.07409062,1420.1,1420.0,35.88636474]
[1673633388010,3.07409062,1420.1,1420.0,33.26582054]
[1673633389340,3.07409062,1420.1,1420.0,13.83132054]
[1673633389527,3.07409062,1420.1,1420.0,19.12653287]
[1673633390200,3.07409062,1420.1,1420.0,26.16878287]
[1673633390574,3.07409062,1420.1,1420.0,19.12653287]
[1673633390787,3.07409062,1420.1,1420.0,26.16878287]
[1673633391051,3.07409062,1420.1,1420.0,19.12653287]
[1673633392420,3.07409062,1420.1,1420.0,26.16878287]
[1673633393355,3.07409062,1420.1,1420.0,19.12653287]
[1673633393690,3.07409062,1420.1,1420.0,26.16878287]
[1673633393893,3.07409062,1420.1,1420.0,19.12653287]
[1673633394051,3.07409062,1420.1,1420.0,12.08428287]
[1673633394939,3.07409062,1420.1,1420.0,20.87361703]
[1673633395309,3.07409062,1420.1,1420.0,27.91586703]
[1673633395849,3.07409062,1420.1,1420.0,20.87361703]
[1673633396522,3.07409062,1420.1,1420.0,5.04203287]
[1673633396681,3.07409062,1420.1,1420.0,12.08428287]
[1673633396890,3.07409062,1420.1,1420.0,19.12653287]
[1673633397103,3.07409062,1420.1,1420.0,26.16878287]
[1673633397323,3.07409062,1420.1,1420.0,12.08428287]
[1673633397535,3.07409062,1420.1,1420.0,5.04203287]
[1673633397972,10.11584062,1420.1,1420.0,5.04203287]
[1673633398319,24.26534062,1420.1,1420.0,3.62803287]
[1673633398459,24.26534062,1420.1,1420.0,2.38403287]
[1673633399140,3.14009062,1420.1,1420.0,2.38403287]
[1673633399354,3.07409062,1420.1,1420.0,2.38403287]
[1673633400193,3.07409062,1420.1,1420.0,9.42628287]
[1673633400348,3.07409062,1420.1,1420.0,9.49228287]
[1673633400770,3.07409062,1420.1,1420.0,2.45003287]
[1673633401012,3.07409062,1420.1,1420.0,2.38403287]
[1673633402125,3.07409062,1420.1,1420.0,8.47128287]
[1673633402313,3.07409062,1420.1,1420.0,15.57953287]
[1673633402985,3.07609062,1420.1,1420.0,15.57753287]
[1673633403208,3.07409062,1420.1,1420.0,15.57953287]
[1673633403418,3.07409062,1420.1,1420.0,23.80478287]
[1673633403645,1.21048842,1420.1,1420.0,16.76253287]
[1673633403854,1.21048842,1420.1,1420.0,19.69861402]
[1673633404024,1.21048842,1420.1,1420.0,17.95153287]
[1673633405602,1.21048842,1420.1,1420.0,24.99378287]
[1673633405902,1.21048842,1420.1,1420.0,17.95153287]
[1673633406233,1.21048842,1420.1,1420.0,26.7408875]
[1673633406775,1.21048842,1420.1,1420.0,24.99378287]
[1673633407177,1.21048842,1420.1,1420.0,26.74088839]
[1673633407396,1.21048842,1420.1,1420.0,28.96199406]
[1673633407766,1.21048842,1420.1,1420.0,35.15382041]
[1673633407912,1.21048842,1420.1,1420.0,38.30269547]
[1673633408339,1.04899869,1420.3,1420.1,2.5]
[1673633408602,1.04899869,1420.3,1420.2,25.24888552]
[1673633408775,1.04899869,1420.3,1420.2,25.31488552]
[1673633410487,1.04899869,1420.3,1420.2,18.27342152]
[1673633410647,1.04899869,1420.3,1420.2,4.19090152]
[1673633410858,1.04899869,1420.3,1420.2,2.378]
[1673633411521,1.04899869,1420.3,1420.2,9.41926]
[1673633411714,1.04899869,1420.3,1420.2,9.48526]
[1673633411906,1.04899869,1420.3,1420.2,16.52652]
[1673633412166,1.04899869,1420.3,1420.2,25.31469322]
[1673633412556,1.04899869,1420.3,1420.2,18.27343322]
[1673633412967,1.04899869,1420.3,1420.2,16.52652]
[1673633413465,1.04899869,1420.3,1420.2,9.48526]
[1673633413973,1.04899869,1420.3,1420.2,25.31469429]
[1673633414115,1.04899869,1420.3,1420.2,26.36859793]
[1673633414329,1.04899869,1420.3,1420.2,25.31469429]
[1673633414781,1.04899869,1420.3,1420.2,26.36859793]
[1673633415008,1.04899869,1420.3,1420.2,27.92239966]
[1673633415228,1.04899869,1420.3,1420.2,37.16455359]
[1673633415447,1.04899869,1420.3,1420.2,37.71243108]
[1673633415751,1.04899869,1420.3,1420.2,39.78522865]
[1673633415899,1.04899869,1420.3,1420.2,43.39156137]
[1673633416111,1.04899869,1420.3,1420.2,41.83775964]
[1673633416326,0.00099869,1420.3,1420.2,43.94595942]
[1673633416642,31.48394493,1420.7,1420.4,28.16071]
[1673633416859,1.11394493,1420.7,1420.6,2.374]
[1673633417231,12.7769601,1420.8,1420.6,23.49181]
[1673633417419,11.20394493,1420.8,1420.7,1.189]
[1673633417740,1.64184493,1420.8,1420.7,15.26656]
[1673633417895,1.57584493,1420.8,1420.7,15.33256]
[1673633418900,1.57584493,1420.8,1420.7,1.255]
[1673633419090,2.1204631,1420.8,1420.6,7.10502]
[1673633419280,2.1204631,1420.8,1420.6,1.249]
[1673633419491,2.1204631,1420.8,1420.6,1.183]
[1673633419837,9.1588131,1420.8,1420.6,1.183]
[1673633420007,9.2248131,1420.8,1420.6,1.183]
[1673633420852,2.1864631,1420.8,1420.6,1.183]
[1673633421072,2.1204631,1420.8,1420.6,1.183]
[1673633421944,9.1589831,1420.8,1420.5,0.066]
[1673633422124,16.2635031,1420.8,1420.4,17.80198]
[1673633422329,9.2249831,1420.8,1420.5,7.03976]
[1673633422582,16.2635031,1420.8,1420.5,0.066]
[1673633422741,23.3020231,1420.8,1420.4,3.722]
[1673633422953,23.3020231,1420.8,1420.4,3.656]
[1673633423376,5.93653503,1420.7,1420.3,10.91551096]
[1673633423584,21.12845996,1420.7,1420.3,14.14732]
[1673633423901,21.12845996,1420.7,1420.3,0.066]
[1673633423902,18.21325272,1420.6,1420.3,0.066]
[1673633424109,18.21325272,1420.6,1420.2,28.98836]
[1673633424110,18.27925272,1420.6,1420.2,28.98836]
[1673633424362,25.31885272,1420.6,1420.2,14.9064]
[1673633424577,6.10633272,1420.5,1420.2,1.248]
[1673633424789,10.71237272,1420.5,1420.1,1.249]
[1673633424959,0.5281,1420.4,1420.1,7.04174]
[1673633425172,7.56848,1420.4,1420.1,0.066]
[1673633425496,25.32146272,1420.4,1420.0,15.08493287]
[1673633425819,27.85356999,1420.4,1420.0,15.08493287]
[1673633426420,20.81318999,1420.4,1420.0,15.08493287]
[1673633426878,20.81318999,1420.4,1420.0,24.74757663]
[1673633427102,27.85345999,1420.4,1420.0,17.70540663]
[1673633427309,27.85345999,1420.4,1420.0,15.08493287]
[1673633427469,20.81307999,1420.4,1420.0,15.08493287]
[1673633427682,20.81307999,1420.4,1420.0,24.74765663]
[1673633427933,11.24070272,1420.4,1420.0,31.78989922]
[1673633428154,0.5941,1420.4,1420.1,1.189]
[1673633428324,0.5281,1420.4,1420.2,22.31278]
[1673633428541,0.528,1420.5,1420.2,22.37878]
[1673633430943,0.528,1420.5,1420.2,15.33752]
[1673633431505,7.56782,1420.5,1420.2,15.33752]
[1673633431691,7.63382,1420.5,1420.2,15.33752]
[1673633431901,0.594,1420.5,1420.2,22.37878]
[1673633432130,0.528,1420.5,1420.2,22.37878]
[1673633432337,17.2938401,1420.6,1420.2,22.37878]
[1673633432553,15.72082493,1420.6,1420.2,22.37878]
[1673633432933,17.2938401,1420.6,1420.2,22.37678]
[1673633433141,17.2938401,1420.6,1420.2,22.37878]
[1673633433886,17.2937101,1420.6,1420.2,22.37878]
[1673633434093,17.2937101,1420.6,1420.2,15.33752]
[1673633434345,24.3331701,1420.6,1420.2,15.33752]
[1673633434558,17.2937101,1420.6,1420.2,15.33752]
[1673633434771,17.2937101,1420.6,1420.2,22.37878]
[1673633435290,8.08785493,1420.5,1420.2,8.29626]
[1673633435508,9.88322594,1420.5,1420.2,7.10726]
[1673633436666,8.83528101,1420.5,1420.2,14.14852]
[1673633436828,7.10591,1420.5,1420.2,14.14852]
[1673633437890,8.15385493,1420.5,1420.2,14.14852]
[1673633438341,15.19376493,1420.5,1420.2,7.10726]
[1673633439193,15.19376493,1420.5,1420.2,0.066]
[1673633439345,15.19376493,1420.5,1420.1,22.37929]
[1673633439710,16.7667801,1420.5,1420.1,22.37929]
[1673633440083,15.19376493,1420.5,1420.1,22.37929]
[1673633440287,16.7667801,1420.5,1420.1,22.37929]
[1673633440498,3.54794493,1420.4,1420.1,1.255]
[1673633440829,14.08152,1420.3,1420.0,23.55859365]
[1673633441041,14.14752,1420.3,1420.0,23.55859365]
[1673633441678,14.14752,1420.3,1420.0,16.78594365]
[1673633441679,7.10676,1420.3,1420.0,16.78594365]
[1673633441891,7.10676,1420.3,1420.0,14.16542287]
[1673633442221,7.10676,1420.3,1420.0,15.34600802]
[1673633442850,7.10676,1420.3,1420.0,8.30375802]
[1673633443234,9.33034649,1420.3,1420.0,15.34600802]
[1673633443686,16.37110649,1420.3,1420.0,8.30375802]
[1673633443865,23.41186649,1420.3,1420.0,1.26161802]
[1673633444228,23.41186649,1420.3,1420.0,1.19561802]
[1673633444650,16.37110649,1420.3,1420.0,1.19561802]
[1673633444964,17.41905142,1420.3,1420.0,1.19561802]
[1673633445141,17.41905142,1420.3,1420.0,8.23767802]
[1673633445352,17.41905142,1420.3,1420.0,8.30367802]
[1673633445562,10.37829142,1420.3,1420.0,8.30367802]
[1673633445785,10.37829142,1420.3,1420.0,15.35192802]
[1673633445786,0.066,1420.3,1420.0,15.35192802]
[1673633446124,1.64204493,1420.4,1420.0,22.39417802]
[1673633446337,12.22264765,1420.4,1420.0,22.39417802]
[1673633446494,5.24837765,1420.4,1420.0,22.39417802]
[1673633446707,4.20043272,1420.4,1420.1,1.7469577]
[1673633447018,4.13443272,1420.4,1420.2,21.12378]
[1673633447244,2.6869601,1420.5,1420.2,21.18978]
[1673633447245,1.11394493,1420.5,1420.2,21.18978]
[1673633447498,1.04794493,1420.5,1420.2,21.18978]
[1673633447909,2.6209601,1420.5,1420.2,14.14852]
[1673633448119,9.6608701,1420.5,1420.2,7.10726]
[1673633448326,9.7268701,1420.5,1420.2,7.10726]
[1673633449418,9.7268701,1420.5,1420.2,14.14852]
[1673633449996,16.7667801,1420.5,1420.2,0.066]
[1673633450205,26.44990485,1420.5,1420.1,15.33102]
[1673633450521,26.44990485,1420.5,1420.2,21.12369]
[1673633450522,2.6869601,1420.5,1420.2,21.12369]
[1673633450730,2.6869601,1420.5,1420.2,21.18969]
[1673633450731,1.04794493,1420.5,1420.2,21.18969]
[1673633450973,0.99794493,1420.5,1420.2,15.32543]
[1673633451180,6.30619285,1420.5,1420.2,15.32543]
[1673633451371,20.45179285,1420.5,1420.2,0.066]
[1673633451605,26.49364792,1420.5,1420.1,0.066]
[1673633451936,23.99364792,1420.5,1420.0,27.8413288]
[1673633452130,22.75841517,1420.5,1420.0,27.8413288]
[1673633452863,15.71861517,1420.5,1420.1,1.7469452]
[1673633453037,8.67881517,1420.5,1420.0,28.89468078]
[1673633453247,8.67881517,1420.5,1420.1,1.74696647]
[1673633453459,0.066,1420.5,1420.2,14.08232]
[1673633453721,7.03982,1420.5,1420.2,14.14832]
[1673633453928,8.67883517,1420.5,1420.2,14.14832]
[1673633454139,7.10582,1420.5,1420.2,14.14832]
[1673633454330,7.10582,1420.5,1420.2,21.18958]
[1673633454331,0.066,1420.5,1420.2,21.18958]
[1673633454531,23.28554517,1420.6,1420.2,21.18958]
[1673633454916,5.77334789,1420.6,1420.2,21.18958]
[1673633455071,4.20033272,1420.6,1420.2,23.80970361]
[1673633455285,0.528,1420.6,1420.2,26.04505559]
[1673633455487,31.22501517,1420.7,1420.4,1.177]
[1673633455852,15.49834789,1420.7,1420.5,14.07954]
[1673633456185,15.49834789,1420.7,1420.5,14.14554]
[1673633456327,2.16701517,1420.7,1420.5,14.14554]
[1673633456542,2.10101517,1420.7,1420.5,14.14554]
[1673633456854,1.57301517,1420.7,1420.5,21.18531]
[1673633457903,2.16399738,1420.8,1420.5,22.37431]
[1673633457904,1.63901517,1420.8,1420.5,22.37431]
[1673633458118,32.67293681,1420.9,1420.5,22.37431]
[1673633458478,36.27926953,1420.9,1420.5,22.37431]
[1673633461008,1.05133752,1420.8,1420.5,22.37431]
[1673633461739,2.62435269,1420.8,1420.5,22.37431]
[1673633462274,1.05133752,1420.8,1420.5,22.37431]
[1673633462492,1.25066178,1420.9,1420.7,1.18]
[1673633462798,1.18466178,1420.9,1420.6,10.90142843]
[1673633462953,1.18466178,1420.9,1420.6,15.32101]
[1673633463167,1.18466178,1420.9,1420.7,7.03876]
[1673633463424,1.18466178,1420.9,1420.7,7.10476]
[1673633463599,1.18466178,1420.9,1420.7,14.14354]
[1673633465003,4.7909945,1420.9,1420.7,0.066]
[1673633465221,6.70978486,1420.8,1420.6,0.066]
[1673633465372,4.65767024,1420.7,1420.4,7.03996]
[1673633465732,4.65767024,1420.7,1420.4,7.10596]
[1673633465948,14.04432346,1420.7,1420.4,0.066]
[1673633466162,14.11032346,1420.7,1420.3,23.80748495]
[1673633466757,14.11032346,1420.7,1420.3,21.18762]
[1673633466973,6.06870259,1420.6,1420.3,0.066]
[1673633467296,3.60633272,1420.5,1420.2,14.08192]
[1673633467510,3.05636987,1420.6,1420.2,14.14792]
[1673633467681,13.63602259,1420.6,1420.2,7.10696]
[1673633467895,15.27503776,1420.6,1420.2,7.10696]
[1673633468106,13.70202259,1420.6,1420.2,7.10696]
[1673633468770,13.70202259,1420.6,1420.2,14.14822]
[1673633468972,6.66270259,1420.6,1420.2,21.18948]
[1673633469211,6.66270259,1420.6,1420.2,21.19802807]
[1673633470079,5.61136507,1420.6,1420.3,1.74668125]
[1673633470287,6.66270259,1420.6,1420.3,7.04057]
[1673633470441,6.66270259,1420.6,1420.3,14.14733]
[1673633470908,3.60633272,1420.5,1420.3,7.10657]
[1673633471108,3.60633272,1420.4,1420.3,7.10671]
[1673633471516,3.60633272,1420.4,1420.3,0.066]
[1673633471741,18.21497272,1420.4,1420.2,0.066]
[1673633471926,18.21497272,1420.4,1420.0,0.07861802]
[1673633471927,5.42782999,1420.3,1420.0,0.07861802]
[1673633472147,3.60633272,1420.2,1420.0,7.05475802]
[1673633472340,3.60633272,1420.2,1420.0,7.12075802]
[1673633472558,1.74289792,1420.2,1420.0,7.12075802]
[1673633472761,1.74289792,1420.2,1420.0,14.16300802]
[1673633473420,2.75198771,1420.2,1420.0,0.07861802]
[1673633473765,2.75198771,1420.2,1420.0,0.01261802]
[1673633473924,2.75198771,1420.2,1420.0,7.05465802]
[1673633474127,3.60633272,1420.1,1420.0,7.12065802]
[1673633474659,3.60633272,1420.1,1420.0,14.16290802]
[1673633474870,3.60633272,1420.1,1420.0,21.20515802]
[1673633476517,0.5942,1420.2,1420.0,21.20515802]
[1673633476725,3.5941,1420.3,1420.0,21.20515802]
[1673633477034,0.5941,1420.4,1420.0,22.38215802]
[1673633477251,0.5281,1420.4,1420.2,21.12378]
[1673633477478,0.5281,1420.4,1420.2,28.23104]
[1673633477789,0.5281,1420.4,1420.2,21.18978]
[1673633479962,11.82073752,1420.5,1420.2,21.18978]
[1673633480167,15.42707024,1420.5,1420.2,21.18978]
[1673633481103,14.37573272,1420.5,1420.2,21.18978]
[1673633481314,15.42707024,1420.5,1420.2,21.18978]
[1673633482006,11.82073752,1420.5,1420.2,21.18978]
[1673633482188,10.2414,1420.5,1420.2,21.18978]
[1673633482434,0.066,1420.5,1420.2,22.37878]
[1673633482587,0.066,1420.6,1420.5,1.04598113]
[1673633482943,1.11733752,1420.7,1420.5,30.60785924]
[1673633483130,3.15225269,1420.8,1420.5,30.67385924]
[1673633483302,1.05133752,1420.7,1420.5,30.67385924]
[1673633483520,3.15225269,1420.8,1420.5,23.63408924]
[1673633483732,1.05133752,1420.7,1420.5,23.63408924]
[1673633483940,3.15225269,1420.8,1420.5,23.63408924]
[1673633486362,1.57923752,1420.8,1420.5,23.63408924]
[1673633486574,4.57923752,1420.8,1420.5,23.63408924]
[1673633486794,4.05133752,1420.8,1420.5,23.63408924]
[1673633488928,4.05133752,1420.8,1420.5,23.41129113]
[1673633489143,3.0,1420.8,1420.5,23.41129113]
[1673633489666,0.19932426,1420.9,1420.6,1.185]
[1673633489889,0.19932426,1420.9,1420.8,1.189]
[1673633489890,0.13332426,1420.9,1420.8,1.189]
[1673633490071,0.13332426,1420.9,1420.8,22.30384]
[1673633490400,0.13332426,1420.9,1420.8,22.36984]
[1673633492837,9.4394332,1421.1,1420.8,23.55884]
[1673633492838,0.2011332,1421.1,1420.8,23.55884]
[1673633492992,0.2011332,1421.1,1420.9,1.189]
[1673633492993,0.1351332,1421.1,1420.9,1.189]
[1673633493339,0.1351332,1421.1,1421.0,32.05106]
[1673633493544,0.1351332,1421.1,1421.0,32.11706]
[1673633494616,1.4201332,1421.1,1421.0,21.17787]
[1673633494769,1.4201332,1421.1,1421.0,0.066]
[1673633494985,1.4201332,1421.1,1420.9,7.10368]
[1673633495191,1.4201332,1421.1,1420.9,0.066]
[1673633495434,2.47147072,1421.1,1420.8,7.10399]
[1673633495690,2.98855762,1421.1,1420.8,7.10399]
[1673633495829,1.9372201,1421.1,1420.8,7.10402]
[1673633496043,1.9372201,1421.1,1420.8,21.18058]
[1673633496300,2.98855762,1421.1,1420.8,0.066]
[1673633496512,2.98855762,1421.1,1420.8,7.03827]
[1673633496702,5.54355282,1421.1,1420.8,14.14255]
[1673633496913,5.60955282,1421.1,1420.8,21.18083]
[1673633497125,4.32455282,1421.1,1420.8,21.18083]
[1673633497456,3.74146592,1421.1,1420.8,21.18083]
[1673633497819,0.1351332,1421.1,1420.8,21.18083]
[1673633498257,0.1371332,1421.1,1420.8,21.17883]
[1673633498487,0.1351332,1421.1,1420.8,21.18083]
[1673633499751,0.1351332,1421.1,1420.9,1.183]
[1673633500117,0.1351332,1421.1,1421.0,21.11187]
[1673633500236,0.1351332,1421.1,1421.0,21.17787]
[1673633501286,0.1351332,1421.1,1421.0,22.36687]
[1673633503387,0.1351332,1421.1,1421.0,24.86687]
[1673633503605,0.1351332,1421.1,1421.0,26.05587]
[1673633503951,26.11204577,1421.3,1421.2,28.1452]
[1673633504119,0.066,1421.3,1421.2,30.5742]
[1673633504330,3.1388427,1421.4,1421.2,30.5742]
[1673633504545,3.1388427,1421.4,1421.3,1.189]
[1673633504799,3.1388427,1421.4,1421.3,22.29643]
[1673633505012,3.1388427,1421.4,1421.3,22.36243]
[1673633505226,0.1388427,1421.4,1421.3,22.36243]
[1673633506248,2.7e-06,1421.4,1421.3,23.54843]
[1673633506474,0.14971762,1421.5,1421.4,2.5]
[1673633506826,0.14971762,1421.5,1421.4,23.60593]
[1673633506966,0.14971762,1421.5,1421.4,23.67193]
[1673633507382,0.13334275,1421.6,1421.5,2.5]
[1673633507730,2.75e-06,1421.6,1421.5,23.47546]
[1673633507942,0.13996819,1421.7,1421.5,27.72046]
[1673633508157,0.13996819,1421.7,1421.6,6.063]
[1673633508486,0.14682172,1421.9,1421.6,30.83829272]
[1673633508644,0.14682172,1421.9,1421.8,2.378]
[1673633508864,0.14682172,1421.9,1421.8,22.28899]
[1673633509219,0.14682172,1421.9,1421.8,22.35499]
[1673633509601,1.43182172,1421.9,1421.8,14.13266]
[1673633510016,0.14682172,1421.9,1421.8,14.13266]
[1673633510244,1.43182172,1421.9,1421.8,21.16599]
[1673633510423,0.14682172,1421.9,1421.8,21.16599]
[1673633511099,1.43182172,1421.9,1421.8,14.13266]
[1673633511321,0.14682172,1421.9,1421.8,21.16599]
[1673633512473,1.72e-06,1421.9,1421.8,22.34899]
[1673633512859,0.15671643,1422.1,1422.0,21.09702]
[1673633513070,0.15671643,1422.1,1422.0,21.16302]
[1673633514897,0.15671643,1422.1,1422.0,0.066]
[1673633514898,1.44171643,1422.1,1422.0,0.066]
[1673633515140,1.96921643,1422.1,1421.9,7.05850406]
[1673633515324,0.15671643,1422.1,1421.9,14.15711406]
[1673633515496,0.15671643,1422.1,1421.9,21.18976406]
[1673633516683,0.52512807,1422.1,1421.9,7.10060828]
[1673633516841,3.55262807,1422.1,1421.9,0.06799828]
[1673633517051,3.55262807,1422.1,1421.9,0.00199828]
[1673633517310,1.05262807,1422.1,1421.9,0.00199828]
[1673633517522,1.05262807,1422.1,1421.9,7.03474828]
[1673633517710,1.05262807,1422.1,1421.9,7.10074828]
[1673633518570,1.05262807,1422.1,1421.9,14.13358828]
[1673633519527,8.68159553,1422.0,1421.9,0.06799828]
[1673633519682,32.84461553,1422.0,1421.9,0.00199828]
[1673633520042,33.37211553,1422.0,1421.9,0.00199828]
[1673633520467,33.37211553,1422.0,1421.5,0.066]
[1673633520468,2.5,1421.9,1421.5,0.066]
[1673633520624,5.04133272,1421.8,1421.4,20.70311]
[1673633520939,5.10733272,1421.8,1421.4,27.73832]
[1673633521359,3.92233272,1421.8,1421.4,27.73832]
[1673633521612,3.92233272,1421.8,1421.4,34.77363]
[1673633521613,3.85633272,1421.8,1421.4,34.77363]
[1673633522716,3.5935,1421.9,1421.4,34.77363]
[1673633522935,4.13383272,1421.9,1421.4,34.77363]
[1673633523246,4.13383272,1421.9,1421.4,35.95763]
[1673633523400,4.13383272,1421.9,1421.5,2.5]
[1673633523612,3.066,1422.0,1421.6,1.176]
[1673633523613,3.5935,1422.0,1421.6,1.176]
[1673633523864,3.0,1422.0,1421.9,1.04704387]
[1673633524028,9.80211643,1422.1,1421.9,1.04704387]
[1673633524240,13.40844915,1422.1,1421.9,8.07978387]
[1673633524502,13.40844915,1422.1,1421.9,8.14578387]
[1673633524714,3.82904915,1422.1,1421.9,8.14578387]
[1673633524870,0.15671643,1422.1,1421.9,15.17862387]
[1673633525080,0.15671643,1422.1,1421.9,8.14578387]
[1673633525462,0.15671643,1422.1,1421.9,15.17862387]
[1673633527017,3.76304915,1422.1,1421.9,1.11304387]
[1673633527192,3.76304915,1422.1,1421.9,8.07982387]
[1673633527193,4.13146079,1422.1,1421.9,8.07982387]
[1673633527398,4.13146079,1422.1,1421.9,8.14582387]
[1673633527611,4.13146079,1422.1,1421.9,1.11304387]
[1673633527811,4.13146079,1422.1,1421.9,8.07987387]
[1673633528022,4.13146079,1422.1,1421.9,15.17871387]
[1673633528287,3.76304915,1422.1,1421.9,15.17871387]
[1673633528459,3.76304915,1422.1,1421.9,22.21155387]
[1673633528647,0.15671643,1422.1,1421.9,22.21155387]
[1673633529914,0.15671643,1422.1,1421.9,27.00288659]
[1673633530159,0.15671643,1422.1,1422.0,23.46202]
[1673633530372,0.15671643,1422.1,1422.0,23.52802]
[1673633530581,0.15671643,1422.1,1422.0,2.431]
[1673633530832,0.15671643,1422.1,1422.0,15.24468]
[1673633531043,0.15671643,1422.1,1422.0,22.34302]
[1673633532732,0.15671643,1422.1,1422.0,24.84302]
[1673633533049,1e-08,1422.1,1422.0,22.34302]
[1673633533423,1e-08,1422.1,1422.0,25.94935272]
[1673633533786,1e-08,1422.1,1422.0,34.16669272]
[1673633534365,0.17756231,1422.7,1422.2,7.03316999]
[1673633534595,0.17756231,1422.7,1422.6,1.185]
[1673633534906,0.17756231,1422.7,1422.6,8.21438]
[1673633535106,1.46256231,1422.7,1422.6,0.066]
[1673633535314,0.17756231,1422.7,1422.6,1.414]
[1673633535525,0.17756231,1422.7,1422.6,22.50214]
[1673633535737,0.17756231,1422.7,1422.6,22.56814]
[1673633535975,0.17756231,1422.7,1422.6,23.75314]
[1673633537215,0.17756231,1422.7,1422.6,27.35947272]
[1673633537441,0.16131103,1422.9,1422.6,29.71347272]
[1673633537634,0.16131103,1422.9,1422.8,2.361]
[1673633537851,0.16131103,1422.9,1422.8,30.71303917]
[1673633538091,0.16131103,1422.9,1422.8,30.77903917]
[1673633538463,0.16131103,1422.9,1422.8,34.38537189]
[1673633538726,0.17437387,1423.2,1422.9,2.5]
[1673633538959,0.17437387,1423.2,1423.0,31.98971945]
[1673633539096,0.17437387,1423.2,1423.1,3.60633272]
[1673633539302,0.17437387,1423.2,1423.1,17.66015272]
[1673633539515,0.17437387,1423.2,1423.1,14.11982]
[1673633539732,0.17437387,1423.2,1423.1,8.27791]
[1673633539981,1.45937387,1423.2,1423.1,7.09291]
[1673633540143,1.45937387,1423.2,1423.1,0.066]
[1673633540506,1.62237998,1423.2,1423.0,0.066]
[1673633540712,1.62237998,1423.2,1423.0,7.02713]
[1673633540925,0.17437387,1423.2,1423.0,7.09313]
[1673633541113,0.17437387,1423.2,1423.0,15.29553]
[1673633541331,0.17437387,1423.2,1423.0,0.066]
[1673633541571,0.17437387,1423.2,1422.9,15.30602]
[1673633541728,0.17437387,1423.2,1423.0,7.02735]
[1673633541942,0.17437387,1423.2,1423.0,14.12075]
[1673633543212,0.17437387,1423.2,1423.0,14.21585]
[1673633543438,0.17437387,1423.2,1423.0,21.24325]
[1673633544881,0.17437387,1423.2,1423.0,7.18845]
[1673633545088,3.78070659,1423.2,1423.0,0.1611]
[1673633545347,3.78070659,1423.2,1423.0,0.0951]
[1673633545348,2.87807066,1423.1,1423.0,0.0951]
[1673633545564,9.90498066,1423.1,1423.0,0.0951]
[1673633545872,0.44407066,1423.1,1423.0,0.0951]
[1673633546093,0.37807066,1423.1,1423.0,0.0951]
[1673633546297,2.87807066,1423.1,1423.0,0.0951]
[1673633546611,0.066,1423.2,1423.0,19.17023272]
[1673633546821,0.17068723,1423.3,1423.1,16.55382]
[1673633547038,0.17068723,1423.3,1423.1,27.25306272]
[1673633547654,0.17068723,1423.3,1423.2,3.60633272]
[1673633547865,0.1848675,1423.5,1423.3,2.5]
[1673633548184,0.1848675,1423.5,1423.4,30.46772]
[1673633548362,0.1848675,1423.5,1423.4,30.53372]
[1673633548559,0.1848675,1423.5,1423.4,23.50829]
[1673633548767,0.1848675,1423.5,1423.4,16.48286]
[1673633550918,1.4698675,1423.5,1423.4,0.066]
[1673633551079,0.1848675,1423.5,1423.4,7.02543]
[1673633551395,0.1848675,1423.5,1423.4,16.49069393]
[1673633552173,1.4698675,1423.5,1423.4,15.30569393]
[1673633552385,1.4698675,1423.5,1423.4,8.28026393]
[1673633552600,1.4698675,1423.5,1423.4,7.09526393]
[1673633553827,0.1848675,1423.5,1423.4,7.09526393]
[1673633554175,0.1848675,1423.5,1423.4,14.12069393]